Cogmind - Beta 11 X2 --- EXPLORER MODE // 2021.02.14 @ 20:49:14 // Winter2019/RPGLIKE Player: jfk Result: Self-destructed Performance ------------- Evolutions (2) 1000 Regions Visited (4) 800 Robots Destroyed (30) 150 Value Destroyed (856) 856 Prototype IDs (2) 40 Alien Tech Used (0) 0 Bonus (19) 19 TOTAL SCORE: 2865 Bonus ------- High Alert Combat Kills 19 Cogmind --------- Core Integrity 555/600 Matter 275/300 Energy 325/325 System Corruption 0% Temperature Cool (0) Movement Hovering (48) Location -8/Materials Parts ------- > --- POWER (2) -------- Improved Ion Engine Light Nuclear Core > --- PROPULSION (4) --- Hover Unit Airjet Airjet Airjet > --- UTILITY (4) ------ Cooling System Structural Scanner Terrain Scanner Improved ECM Suite > --- WEAPON (2) ------- Advanced Beam Cannon Improved Assault Rifle > --- INVENTORY (3) ---- Missile Launcher Heavy Hammer Peak State ------------ > --- POWER ------------ Improved Ion Engine Light Nuclear Core > --- PROPULSION ------- Hover Unit Airjet Airjet Airjet > --- UTILITY ---------- Cooling System Structural Scanner Terrain Scanner Improved ECM Suite > --- WEAPON ----------- Advanced Beam Cannon Improved Assault Rifle > --- INVENTORY -------- Missile Launcher Heavy Hammer [Rating: 28] Favorites ----------- Power Light Ion Engine Engine Light Ion Engine Power Core Light Nuclear Core Propulsion Airjet Leg Aluminum Leg Hover Unit Airjet Utility Structural Scanner Device Structural Scanner Weapon Beam Rifle Energy Gun Beam Rifle Energy Cannon Advanced Beam Cannon Ballistic Gun Assault Rifle Ballistic Cannon Light Cannon Launcher Missile Launcher Build | -11 -10 -9 -9 -8 ------- Run | Scr Mat Mat Sto Mat Slots Evolved 8 | 6 . 2 . . Power 1 | 1 . . . . Propulsion 3 | 3 . . . . Utility 3 | 1 . 2 . . Weapon 1 | 1 . . . . Parts Attached 25 | 8 3 9 5 . Power 5 | 2 . 2 1 . Engine 4 | 2 . 1 1 . Core 1 | . . 1 . . Reactor . | . . . . . Propulsion 7 | 2 . 5 . . Treads . | . . . . . Leg 2 | 2 . . . . Wheel . | . . . . . Hover 5 | . . 5 . . Flight . | . . . . . Utility 5 | 2 1 2 . . Device 5 | 2 1 2 . . Storage . | . . . . . Processor . | . . . . . Hackware . | . . . . . Protection . | . . . . . Artifact . | . . . . . Weapon 8 | 2 2 . 4 . Energy Gun 2 | 1 1 . . . Energy Cannon 1 | . . . 1 . Ballistic Gun 3 | 1 . . 2 . Ballistic Cannon 1 | . 1 . . . Launcher 1 | . . . 1 . Special Weapon . | . . . . . Impact Weapon . | . . . . . Slashing Weapon . | . . . . . Piercing Weapon . | . . . . . Special Melee Weapon . | . . . . . Unidentified Prototypes 2 | . . . 2 . Parts Lost 1 | . . . 1 . Power . | . . . . . Propulsion . | . . . . . Utility . | . . . . . Weapon 1 | . . . 1 . Highest Loss Streak 1 | . . . 1 . Average Slot Usage (%) 87 | . 79 85 99 . Engine 14 | . 20 12 8 . Core 3 | . . 3 8 . Leg 8 | . 20 4 . . Hover 17 | . . 21 33 . Device 25 | . 19 25 33 . Energy Gun 7 | . 10 8 2 . Energy Cannon 1 | . . . 5 . Ballistic Gun 4 | . 8 . 4 . Ballistic Cannon 4 | . 1 8 2 . Naked Turns . | . . . . . Heaviest Build 26 | 11 14 22 26 . Greatest Support 32 | 20 20 32 30 . Greatest Overweight (x) . | . . . . . Average Overweight (x) . | . . . . . Largest Inventory Capacity 3 | 3 3 3 3 . Average Capacity 2 | 2 3 3 3 . Most Carried 3 | 3 1 3 3 . Average Carried . | . . 1 1 . Final Capacity 3 | 3 3 3 3 3 Final Carried 2 | . . 1 2 2 Class Distribution -------------------- 52% | Hacker-Scout 36% | Hacker-Mutant 10% | Hacker-Skirmisher Dominant Class ---------------- Hacker-Mutant | -10/Materials Hacker-Scout | -9/Materials Hacker-Scout | -9/Storage Hacker-Scout | -8/Materials Resources | -11 -10 -9 -9 -8 ----------- Run | Scr Mat Mat Sto Mat Matter Collected 789 | 280 45 312 152 . Remotely . | . . . . . Salvage Created 994 | . 169 389 436 . Parts 68 | . 10 28 30 . Haulers Intercepted 6 | . 2 2 2 . Recyclers Shooed . | . . . . . Parts Field Recycled . | . . . . . Retrieved Matter . | . . . . . Parts Self-Destructed . | . . . . . Prevented . | . . . . . Kills | -11 -10 -9 -9 -8 ------- Run | Scr Mat Mat Sto Mat Combat Hostiles Destroyed 22 | . 2 11 9 . Guns 11 | . 2 5 4 . Cannons 11 | . . 6 5 . Classes Destroyed 6 | . 2 4 . . Hauler 6 | . 2 2 2 . Watcher 2 | . . 1 1 . Swarmer 2 | . . 2 . . Grunt 13 | . 2 5 6 . Duelist 1 | . . 1 . . Sentry 6 | . . 3 3 . Best Kill Streak 7 | . 2 4 7 . Combat Bots Only 7 | . 2 3 7 . Max Kills in Single Turn 1 | . 1 1 1 . Gunslinging . | . . . . . Exploded . | . . . . . Melee . | . . . . . Uniques/NPCs Destroyed . | . . . . . Combat | -11 -10 -9 -9 -8 -------- Run | Scr Mat Mat Sto Mat Damage Taken 487 | . 33 331 123 . Core 382 | . 23 262 97 . Absorbed by Shields . | . . . . . Redirected to Core 297 | . 23 204 70 . Core Remaining (%) 97 | 100 100 . 92 . Volleys Fired 88 | . 15 42 31 . Largest 2 | . 2 2 2 . Hottest 91 | . 60 91 91 . Shots Fired 161 | . 30 72 59 . Gun 88 | . 30 30 28 . Cannon 72 | . . 42 30 . Launcher 1 | . . . 1 . Special . | . . . . . Kinetic 85 | . 15 42 28 . Thermal 75 | . 15 30 30 . Explosive 1 | . . . 1 . Electromagnetic . | . . . . . Robot Hit Streak 38 | . 10 18 38 . Robot Miss Streak 3 | . 1 3 1 . Penetration Max . | . . . . . Secondary Targets 1 | . 1 . . . Max Gunslinging Chain 1 | . 1 . . . Shots Hit Robots 116 | . 24 53 39 . Core Hits 47 | . 8 22 17 . Critical Hits . | . . . . . Critical Kills . | . . . . . Critical Parts Destroyed . | . . . . . Melee Attacks . | . . . . . Impact . | . . . . . Slashing . | . . . . . Piercing . | . . . . . Sneak Attacks . | . . . . . Combat Hostiles . | . . . . . Follow-up Attacks . | . . . . . Damage Inflicted 1739 | . 288 792 659 . Guns 933 | . 288 349 296 . Cannons 806 | . . 443 363 . Explosions . | . . . . . Melee . | . . . . . Ramming . | . . . . . Kinetic 887 | . 156 443 288 . Thermal 852 | . 132 349 371 . Explosive . | . . . . . Electromagnetic . | . . . . . Impact . | . . . . . Slashing . | . . . . . Piercing . | . . . . . Highest Corruption . | . . . . . Average Corruption . | . . . . . Corruption Purged . | . . . . . Overload Shots . | . . . . . Overflow Damage . | . . . . . Projectiles . | . . . . . Explosions . | . . . . . Melee . | . . . . . Knockbacks 4 | . . 4 . . Impact . | . . . . . Kinetic 4 | . . 4 . . Secondary . | . . . . . Self-Inflicted Damage . | . . . . . Shots . | . . . . . Rammed . | . . . . . Targets Rammed . | . . . . . Kicked . | . . . . . Crushed . | . . . . . Highest Temperature 476 | . 154 476 15 . Average Temperature 155 | . 66 229 15 . Received Heat Transfer 321 | . 30 192 99 . Effects 11 | . . 11 . . Shutdowns 6 | . . 6 . . Energy Bleed 2 | . . 2 . . Matter Decay 1 | . . 1 . . Short Circuit 1 | . . 1 . . Damage (minor) 1 | . . 1 . . Siege Activations . | . . . . . Robots Corrupted . | . . . . . Combat Hostiles . | . . . . . Parts Fried . | . . . . . Impact Corruptions . | . . . . . Robots Melted . | . . . . . Combat Hostiles . | . . . . . Parts Melted 2 | . 1 . 1 . Heat Transferred 2039 | . 300 888 851 . Parts Sabotaged . | . . . . . Parts Stolen . | . . . . . Parts Stripped . | . . . . . Power Chain Reactions . | . . . . . Missiles Intercepted . | . . . . . Alert | -11 -10 -9 -9 -8 ------- Run | Scr Mat Mat Sto Mat Peak Influence 450 | . 54 401 450 . Initial 135 | . . 15 121 135 Average 139 | . 48 138 289 . Maximum Alert Level 2 | . . 2 2 . Low Security (%) 68 | 100 100 73 14 . Level 1 29 | . . 24 79 . Level 2 2 | . . 1 5 . Level 3 . | . . . . . Level 4 . | . . . . . Level 5 . | . . . . . High Security . | . . . . . Max Security . | . . . . . Squads Dispatched 2 | . . 1 1 . Investigation . | . . . . . Extermination . | . . . . . Reinforcement 2 | . . 1 1 . Assault . | . . . . . Garrison . | . . . . . Intercept . | . . . . . Construction Impeded . | . . . . . Haulers Reinforced . | . . . . . Stealth | -11 -10 -9 -9 -8 --------- Run | Scr Mat Mat Sto Mat Distress Signals 4 | . 2 1 1 . Communications Jammed . | . . . . . Distress Signals . | . . . . . Times Spotted 38 | . 4 17 17 . Peak Tracking Total 6 | . 3 6 4 . Tactical Retreats 1 | . . . 1 . Traps | -11 -10 -9 -9 -8 ------- Run | Scr Mat Mat Sto Mat Traps Triggered 1 | . 1 . . . Indirectly . | . . . . . Trap Hack Attempts . | . . . . . Triggered . | . . . . . Disarmed . | . . . . . Reprogrammed . | . . . . . Reused . | . . . . . Traps Extracted . | . . . . . Installed . | . . . . . Triggered . | . . . . . Machines | -11 -10 -9 -9 -8 ---------- Run | Scr Mat Mat Sto Mat Machines Disabled 2 | . . . 2 . Max in Single Turn 1 | . . . 1 . Machines Sabotaged . | . . . . . Garrisons Compromised . | . . . . . Overloaded Fab Kills . | . . . . . Fab Network Shutdowns . | . . . . . Hacking | -11 -10 -9 -9 -8 --------- Run | Scr Mat Mat Sto Mat Machines Accessed 1 | . . . 1 . Terminals 1 | . . . 1 . Fabricators . | . . . . . Repair Stations . | . . . . . Recycling Units . | . . . . . Scanalyzers . | . . . . . Garrison Access . | . . . . . Total Hacks 1 | . . . 1 . Successful 1 | . . . 1 . Failed . | . . . . . Catastrophic . | . . . . . Database Lockouts . | . . . . . Manual 1 | . . . 1 . Terminals 1 | . . . 1 . Fabricators . | . . . . . Repair Stations . | . . . . . Recycling Units . | . . . . . Scanalyzers . | . . . . . Garrison Access . | . . . . . Terminal Hacks 1 | . . . 1 . Open Door 1 | . . . 1 . Fabricator Hacks . | . . . . . Repair Station Hacks . | . . . . . Recycling Unit Hacks . | . . . . . Scanalyzer . | . . . . . Garrison Access Hacks . | . . . . . Unauthorized Hacks . | . . . . . Terminals . | . . . . . Fabricators . | . . . . . Repair Stations . | . . . . . Recycling Units . | . . . . . Scanalyzers . | . . . . . Garrison Access . | . . . . . Data Cores Recovered . | . . . . . Used . | . . . . . Hacking Detections . | . . . . . Full Trace Events . | . . . . . Feedback Events . | . . . . . Feedback Blocked . | . . . . . Robot Schematics Acquired . | . . . . . Robots Built . | . . . . . Matter . | . . . . . Time . | . . . . . Total Robot Build Rating . | . . . . . Part Schematics Acquired . | . . . . . Parts Built . | . . . . . Matter . | . . . . . Time . | . . . . . Total Part Build Rating . | . . . . . Parts Repaired . | . . . . . Time . | . . . . . Parts Recycled . | . . . . . Recycled Matter . | . . . . . Retrieved Matter . | . . . . . Retrieved Components . | . . . . . Parts Scanalyzed . | . . . . . Part Schematics Acquired . | . . . . . Parts Damaged . | . . . . . Bothacking | -11 -10 -9 -9 -8 ------------ Run | Scr Mat Mat Sto Mat Used RIF Installer . | . . . . . Robots Hacked . | . . . . . Non-combat . | . . . . . Combat . | . . . . . Robot Hacks Applied . | . . . . . Relay Couplers Released . | . . . . . Robots Rewired . | . . . . . Allies Hacked . | . . . . . Hacks Repelled . | . . . . . Allies | -11 -10 -9 -9 -8 -------- Run | Scr Mat Mat Sto Mat Total Allies . | . . . . . Largest Group . | . . . . . Highest-Rated Group . | . . . . . Highest-Rated Ally . | . . . . . Total Orders . | . . . . . Ally Attacks . | . . . . . Total Damage . | . . . . . Kills . | . . . . . Allies Corrupted . | . . . . . Allies Melted . | . . . . . Intel | -11 -10 -9 -9 -8 ------- Run | Scr Mat Mat Sto Mat Robot Analysis Total . | . . . . . Derelict Logs Recovered . | . . . . . Drone Launches . | . . . . . Drone Recoveries . | . . . . . Exploration | -11 -10 -9 -9 -8 ------------- Run | Scr Mat Mat Sto Mat Turns Passed 1037 | 65 338 369 265 . Spaces Moved 826 | 50 235 262 279 . Core 16 | 16 . . . . Treads . | . . . . . Legs 327 | 34 235 58 . . Wheels . | . . . . . Hover 483 | . . 204 279 . Flight . | . . . . . Fastest Speed 48 | 50 120 48 48 . Average Speed 77 | 97 120 65 48 . Slowest Speed 120 | 120 120 120 48 . Overloaded Moves . | . . . . . Propulsion Burnouts . | . . . . . Robots Hopped . | . . . . . Cave-ins Triggered . | . . . . . Exploration Rate (%) 25 | 3 50 27 43 3 Regions Visited 4 Branch Regions 1 Pre-discovered Areas . | . . . . . Known Exits Taken 4 | 1 1 1 1 . Unknown Exits Taken . | . . . . . Scrap Searched . | . . . . . Spaces Dug . | . . . . . Terrain Destroyed 9 | . . . 9 . Melee . | . . . . . Projectile . | . . . . . AOE 9 | . . . 9 . Terrain Rammed . | . . . . . Walls Destroyed . | . . . . . Machines Disabled . | . . . . . Actions | -11 -10 -9 -9 -8 --------- Run | Scr Mat Mat Sto Mat Total 1065 | 65 262 388 350 . Wait 70 | 2 2 47 19 . Move 822 | 49 234 261 278 . Hop . | . . . . . Pick Up 23 | 6 3 9 5 . Fast Attach 3 | 2 . 1 . . Attach 20 | 6 3 7 4 . Detach . | . . . . . Swap 3 | . . 1 2 . Drop 11 | . 3 5 3 . Fire 88 | . 15 42 31 . Melee . | . . . . . Ram . | . . . . . Kick . | . . . . . Crush . | . . . . . Escape Stasis . | . . . . . Rewire . | . . . . . Trap . | . . . . . Miscellaneous 25 | . 2 15 8 . Route ------- -11/Scrapyard -10/Materials (discovered 2 exits: *Mat x2) -9/Materials (discovered 4 exits: *Mat x2 / *Sto x2) -9/Storage (discovered 2 exits: *Mat / Rec) -8/Materials History --------- Turn | Location | Event 3 | -11/Scrapyard | Identified exit to Materials 3 | -11/Scrapyard | Discovered exit to Materials (range 15) 3 | -11/Scrapyard | Upgraded with Power slot (x1) 3 | -11/Scrapyard | Upgraded with Propulsion slot (x3) 3 | -11/Scrapyard | Upgraded with Utility slot (x1) 3 | -11/Scrapyard | Upgraded with Weapon slot (x1) 66 | -11/Scrapyard | Entered Materials 191 | -10/Materials | Identified exit to Materials 191 | -10/Materials | Discovered exit to Materials (range 15) 332 | -10/Materials | Build established: Hacker-Mutant 363 | -10/Materials | Discovered exit to Materials (range 10) 404 | -10/Materials | Entered another Materials area 406 | -9/Materials | Reached level 2 406 | -9/Materials | Reached level 3 412 | -9/Materials | Upgraded with Utility slot (x2) 532 | -9/Materials | Identified exit to Materials 532 | -9/Materials | Discovered exit to Materials (range 11) 613 | -9/Materials | Reached level 4 658 | -9/Materials | Identified exit to Storage 658 | -9/Materials | Discovered exit to Storage (range 14) 695 | -9/Materials | Discovered exit to Materials (range 16) 756 | -9/Materials | Discovered exit to Storage (range 13) 773 | -9/Materials | Entered Storage 775 | -9/Storage | Reached level 5 790 | -9/Storage | Build established: Hacker-Scout 848 | -9/Storage | Destroyed 7 combat bots 874 | -9/Storage | Identified exit to Recycling 874 | -9/Storage | Discovered exit to Recycling (range 7) 1026 | -9/Storage | Reached level 6 1030 | -9/Storage | Discovered exit to Materials (range 16) 1038 | -9/Storage | Entered Materials 1038 | -8/Materials | Self-destructed Last Messages --------------- 00957_ R-06 Scavenger inserts Hover Unit into recycling unit. 00957_ U-05 Engineer lays Concrete. 00959_ U-05 Engineer builds a Wall. 00960_ R-06 Scavenger inserts Hover Unit into recycling unit. 00963_ R-06 Scavenger inserts Sensor Array into recycling unit. 00966_ Acquired 42 matter. 00970_ Storage Shell breached. 00974_ Extracted 3 matter. 00975_ Dropped Ion Engine. 00975_ Acquired Imp. Ion Engine. 00993_ O-16 Technician: "IFF HANDSHAKE FAILED. SECURING TERMINAL." 00995_ ALERT: Hostiles spotted, dispatching reinforcements to Terminal S003. 01023_ A-02 Transporter destroyed. 01026_ Reached level 6. 01026_ G-34 Mercenary destroyed. 01030_ EXIT=FOUND: MATERIALS 01033_ O-16 Technician: "IFF HANDSHAKE FAILED. SECURING TERMINAL." LOCATION=MATERIALS GOAL=ESCAPE Map ----- +----------------------------------------------------+ | | | | | | | | | | | | | | | | | | | | | | | ???????????????????????????????????? | | ???????????????????????????????????? | | ???????????????????????????????????? | | ???????????????????????????????????? | | ???????????????????????????????????? | | ???????????????????????????????????? | | ???????????????????????????????????? | | ???????????????????????????????????? | | ??????????????+###?????????????????? | | ?????????????? ????????????????? | | ??????????????? ??????????????? | | ????????????????""" ?????????????? | | ????????????????""" #####???????? | | ?????????????? """ #???????? | | ????????????# @ #???????? | | ????????????# #???????? | | ???????????# """ #???????? | | ????????????????""" #???????? | | ????????????????""" % #???????? | | ???????????????? #???????? | | ??????????????? #???????? | | ??????????????" "####### #???????? | | ??????????????"G??????? #???????? | | ??????????????????????? #???????? | | ??????????????????????? #???????? | | ??????????????????????? #???????? | | ??????????????????????? #???????? | | ?????????????????????? ????????? | | ??????????????????????## ????????? | | ???????????????????????? ????????? | | ???????????????????????????????????? | | ???????????????????????????????????? | | ???????????????????????????????????? | | ???????????????????????????????????? | | ???????????????????????????????????? | | ???????????????????????????????????? | | ???????????????????????????????????? | | ???????????????????????????????????? | | ???????????????????????????????????? | +----------------------------------------------------+ Best States ------------- Heat Dissipation 83 Energy Generation 31 Energy Capacity 325 Matter Stores 300 Matter Capacity 300 Sight Range 16 Robot Scan Range 14 Terrain Scan Range 14 Terrain Scan Density 710 ECM Strength 2 Resistance: KI 35 Resistance: TH 35 Resistance: EX 35 Resistance: EM 35 Resistance: I 35 Resistance: S 35 Resistance: P 35 Evasion (%) 55 Offensive Hacking 20 Item Schematics ----------------- None Robot Schematics ------------------ None Fabricated ------------ Nothing Alien Tech Used ----------------- None Achievements -------------- None Challenges ------------ None RPGLIKE | -11 -10 -9 -9 -8 --------- Run | Scr Mat Mat Sto Mat Levels Raised 5 | . . 3 2 . XP Earned 13635 | 6000 270 5081 2284 . XP Spent 10340 | 5400 400 4540 . . Upgrades 27 | 9 1 17 . . Power Slot 1 | 1 . . . . Propulsion Slot 3 | 3 . . . . Utility Slot 3 | 1 . 2 . . Weapon Slot 1 | 1 . . . . Heat Dissipation 6 | . . 6 . . Energy Generation 2 | . . 2 . . Inventory Capacity 3 | 3 . . . . Terrain Scan Density 7 | . . 7 . . Ranged Accuracy 1 | . 1 . . . Protomatter Created 351 | . 49 177 125 . Integrity Restored 468 | . 33 300 135 . Core 337 | . 23 262 52 . Parts 131 | . 10 38 83 . Protomatter Decayed 270 | . 166 30 74 . Game ------ Seed CoordinationAssembledEdition Manual? 0 Play Time 00:12:34 Cumulative 100.2 hours Start 2021.02.14 @ 20:34:14 End 2021.02.14 @ 20:49:14 Sessions 1 Manual Loads 0 Difficulty Explorer Special Mode Winter2019/RPGLIKE Game No. 26 Rogue 0 Adventurer 0 Explorer 26 Win Type - Total 5 Types 4/0/1/0/0/0/0/0/0 Lore% 45 Gallery% 64 Achievement% 56 Wizard Run 0 Options --------- ASCII 1 Keyboard 0 Movement Mouse Keybinds 0 Fullscreen 1 Font 18/Smallcaps Map View 76x50 Tactical HUD 1 Map Filters NONE Filters NONE Steam 1 RUN: f69dd139-54ec-4362-b12f-b231c7b097d5